bitfinex/quotes_ETHUSD_20220227
["timestamp","ask_amount","ask_price","bid_price","bid_amount"]
[1645925564753,1.55892209,2712.1,2711.2,1.36963]
[1645925564953,0.00477674,2711.7,2711.2,1.36963]
[1645925565353,0.00477674,2711.7,2711.2,2.46124202]
[1645925565753,0.36610179,2712.4,2711.2,2.46124202]
[1645925565954,0.00477679,2711.6,2711.2,2.46124202]
[1645925566253,0.00477679,2711.6,2711.2,1.36963]
[1645925566852,0.00320179,2712.3,2711.2,1.36963]
[1645925567054,0.3629,2712.2,2711.2,1.36963]
[1645925567255,0.00477681,2711.5,2711.2,2.45389184]
[1645925567453,0.00477681,2711.5,2711.2,1.36963]
[1645925568106,0.00320179,2711.8,2711.2,1.36963]
[1645925568303,1.23485861,2711.9,2711.2,1.36963]
[1645925568501,0.00320179,2712.4,2711.2,1.36963]
[1645925568502,0.00507587,2711.5,2711.2,1.36963]
[1645925569406,0.12629493,2711.7,2711.5,1.4043173]
[1645925569610,0.12629493,2711.7,2711.6,0.443]
[1645925571306,0.12629493,2711.7,2711.5,3.6892973]
[1645925571307,0.12629493,2711.7,2711.5,8.635e-05]
[1645925571512,0.12629493,2711.7,2711.1,0.00358203]
[1645925571766,0.01299565,2711.2,2710.8,0.3085]
[1645925571967,5.3629,2711.1,2710.8,0.3085]
[1645925572262,3.8629,2711.0,2710.0,0.25]
[1645925572462,0.3629,2710.8,2710.0,0.25]
[1645925572665,3.8629,2710.8,2710.0,0.25]
[1645925572863,0.3629,2710.8,2710.0,0.25]
[1645925573068,3.8629,2710.8,2710.0,0.25]
[1645925573268,0.3629,2710.8,2710.0,0.25]
[1645925573467,2.96840991,2710.9,2709.7,1.059]
[1645925573468,1.84582,2710.9,2709.7,1.059]
[1645925573665,1.28581,2710.9,2709.7,1.059]
[1645925573866,4.78581,2710.9,2709.7,1.059]
[1645925574469,5.0,2711.1,2709.9,1.08376931]
[1645925574671,0.3629,2711.0,2709.7,1.9816109]
[1645925575275,0.5,2711.1,2710.2,0.7877]
[1645925575498,4.0,2711.1,2710.2,0.7877]
[1645925575699,1.26923333,2710.6,2710.5,0.00433456]
[1645925576700,1.26923333,2710.6,2710.2,0.7877]
[1645925577103,1.26923333,2710.6,2710.4,0.00433464]
[1645925577304,2.13926,2711.2,2710.4,0.00433464]
[1645925577305,1.77636,2711.2,2710.4,0.00433464]
[1645925577501,0.8536,2711.2,2710.4,0.00433464]
[1645925577705,3.5,2711.1,2710.4,0.00433464]
[1645925577902,0.8536,2711.2,2710.2,0.7877]
[1645925578101,0.8536,2711.2,2710.7,0.00433424]
[1645925578702,0.12465094,2711.0,2710.7,0.00433424]
[1645925579175,0.12465094,2711.0,2710.6,0.831]
[1645925579368,0.12465094,2711.0,2710.7,0.00433416]
[1645925579969,0.07465094,2711.0,2710.7,0.00433416]
[1645925580371,0.07465094,2711.0,2710.4,0.3]
[1645925580569,0.07465094,2711.0,2710.7,0.00406327]
[1645925580770,1.20650758,2711.0,2710.7,0.00406327]
[1645925580968,0.07465094,2711.0,2710.7,0.00406327]
[1645925581568,0.07465094,2711.0,2710.2,0.7877]
[1645925581774,0.07465094,2711.0,2710.7,0.00406327]
[1645925582769,0.07465094,2711.0,2710.2,0.7877]
[1645925583011,0.07465094,2711.0,2710.7,0.00406327]
[1645925583209,1.42360534,2710.8,2710.7,0.00406327]
[1645925583414,1.42360534,2710.8,2710.7,6.327e-05]
[1645925583610,0.3629,2710.8,2710.7,6.327e-05]
[1645925583819,0.3629,2710.8,2710.2,0.4877]
[1645925583820,3.8629,2710.8,2710.2,0.4877]
[1645925584213,4.8629,2710.8,2710.6,0.01561174]
[1645925584412,1.3629,2710.8,2710.6,0.01561174]
[1645925584614,2.67270099,2710.8,2710.6,0.01561174]
[1645925584815,3.5,2710.7,2710.6,0.01561174]
[1645925585214,3.8629,2710.7,2710.6,0.01561174]
[1645925585418,0.3629,2710.7,2710.6,0.01561174]
[1645925585819,3.8629,2710.7,2710.6,0.01561174]
[1645925586694,4.8629,2710.7,2710.6,0.01561174]
[1645925586886,5.8629,2710.7,2710.6,0.01561174]
[1645925587284,16.9529,2710.7,2710.6,0.01561174]
[1645925587479,5.8629,2710.7,2710.6,0.01561174]
[1645925587679,4.8629,2710.7,2710.6,0.01561174]
[1645925588681,15.9529,2710.7,2710.6,0.01561174]
[1645925589082,15.9529,2710.7,2710.6,0.03115548]
[1645925589487,12.4529,2710.7,2710.6,0.03115548]
[1645925589685,15.9529,2710.7,2710.6,0.03115548]
[1645925591313,0.08644694,2710.3,2709.9,0.25]
[1645925591510,0.08644694,2710.3,2709.5,0.05691471]
[1645925592116,11.09,2709.9,2709.3,1.0]
[1645925592314,0.3629,2709.8,2709.3,1.0]
[1645925592515,5.0,2710.2,2709.3,1.0]
[1645925592516,0.08644694,2710.3,2709.3,1.0]
[1645925592719,0.08644694,2710.3,2709.4,0.531]
[1645925593122,0.08644694,2710.3,2709.5,0.3629]
[1645925593314,0.08644694,2710.3,2709.7,0.3629]
[1645925593514,0.08644694,2710.3,2710.2,1.23607462]
[1645925593716,0.08644694,2710.3,2710.0,0.3]
[1645925594568,0.08644694,2710.3,2709.6,3.50804]
[1645925595368,0.08644694,2710.3,2709.6,3.95104]
[1645925595571,3.0,2711.1,2709.6,3.95104]
[1645925595572,2.0,2711.1,2710.1,1.28547]
[1645925595771,2.18070179,2711.4,2710.3,0.3629]
[1645925595968,1.03890179,2711.4,2710.4,0.8059]
[1645925596171,1.03890179,2711.4,2710.1,14.2348747]
[1645925596172,1.03890179,2711.4,2710.5,0.8059]
[1645925596368,1.03890179,2711.4,2710.6,0.443]
[1645925596369,0.00530268,2711.1,2710.6,0.443]
[1645925596570,0.00530268,2711.1,2710.8,1.25781354]
[1645925596768,0.00530268,2711.1,2710.9,0.92229]
[1645925596973,0.00530268,2711.1,2710.9,1.36529]
[1645925597167,1.06011019,2711.4,2710.9,1.36529]
[1645925597168,1.03890179,2711.4,2710.9,2.02819]
[1645925597368,0.00530416,2711.1,2710.9,2.02819]
[1645925597769,0.00530416,2711.1,2710.9,3.95034]
[1645925598023,0.00530416,2711.1,2710.9,16.26254]
[1645925598222,0.00530416,2711.1,2710.9,18.37946443]
[1645925598421,1.0357,2711.4,2710.9,18.37946443]
[1645925598625,0.00530424,2711.1,2710.9,18.37946443]
[1645925599124,0.00530424,2711.1,2711.0,0.21270927]
[1645925599328,0.00530424,2711.1,2711.0,0.65570927]
[1645925599532,1.0357,2711.4,2711.2,0.92216]
[1645925599730,1.0357,2711.4,2711.3,0.443]
[1645925600129,1.0357,2711.4,2711.3,0.743]
[1645925600329,0.00320179,2712.3,2711.5,4.8629]
[1645925600533,0.00320179,2712.3,2711.7,0.3629]
[1645925600746,1.6052,2713.2,2712.5,1.30000196]
[1645925600747,0.00320179,2713.1,2712.5,1.30000196]
[1645925600928,0.00320179,2713.1,2712.1,0.443]
[1645925600929,1.55812482,2713.1,2712.1,0.443]
[1645925601147,1.55812482,2713.0,2712.1,0.443]
[1645925601330,0.5,2712.9,2712.1,0.443]
[1645925601528,0.5,2712.9,2712.1,0.743]
[1645925602864,0.5,2712.9,2712.6,1.4358514]
[1645925603069,0.5,2712.9,2712.1,0.743]
[1645925604468,0.5,2712.9,2712.6,1.08537344]
[1645925604775,0.5,2712.9,2712.6,1.38537344]
[1645925605807,0.50530524,2712.9,2712.6,1.38537344]
[1645925606811,0.5,2712.9,2712.6,1.38537344]
[1645925607013,0.50530524,2712.9,2712.6,1.38537344]
[1645925607916,0.5,2712.9,2712.6,1.38537344]
[1645925608314,0.50530524,2712.9,2712.6,1.38537344]
[1645925609171,0.5,2712.9,2712.6,1.38537344]
[1645925609568,0.50504195,2712.9,2712.6,1.38537344]
[1645925610667,0.504001,2712.9,2712.6,1.38537344]
[1645925610865,0.454001,2712.9,2712.6,1.38537344]
[1645925611466,0.45,2712.9,2712.6,1.38537344]
[1645925611865,0.45,2712.9,2712.6,0.3]
[1645925611866,0.454001,2712.9,2712.6,0.3]
[1645925612166,0.454001,2712.9,2712.5,1.0]
[1645925612367,0.454001,2712.9,2712.5,0.3]
[1645925612766,0.45,2712.9,2712.3,0.743]
[1645925613012,0.00530862,2712.8,2712.6,1.09911305]
[1645925613212,0.00530862,2712.8,2712.6,0.3]
[1645925613413,0.00530862,2712.8,2712.5,0.3]
[1645925613812,0.00530862,2712.8,2712.3,0.743]
[1645925614013,0.45,2712.9,2712.3,0.743]
[1645925614218,0.00530864,2712.8,2712.3,0.743]
[1645925614916,0.00530864,2712.8,2712.6,1.04678304]
[1645925615121,0.45,2712.9,2712.3,0.743]
[1645925615318,1.66195606,2712.5,2711.8,2.28683]
[1645925615521,1.66195606,2712.5,2711.5,0.25]
[1645925615717,0.00320179,2712.4,2711.4,1.84403]
[1645925616217,0.00320179,2712.4,2711.9,1.18772223]
[1645925616418,1.66195606,2712.5,2711.9,1.18772223]
[1645925616679,0.00530901,2712.0,2711.9,0.3]
[1645925617369,0.00530901,2712.0,2711.8,3.0658224]
[1645925617572,0.00320179,2712.4,2711.8,4.0658224]
[1645925617776,0.00530898,2712.1,2711.8,3.0658224]
[1645925617973,0.00530898,2712.1,2711.8,2.1439024]
[1645925618773,0.00320179,2712.4,2711.8,2.1439024]
[1645925618973,0.00530898,2712.1,2711.8,2.1439024]
[1645925619175,0.00530898,2712.1,2711.9,1.22131235]
[1645925619377,0.00530898,2712.1,2711.8,2.1439024]
[1645925619876,0.00320179,2712.4,2711.8,2.1439024]
[1645925620077,1.66195606,2712.5,2711.8,2.1439024]
[1645925620284,0.00530898,2712.1,2711.8,2.1439024]
[1645925620505,0.00530898,2712.1,2711.8,1.22199]
[1645925620708,0.00530898,2712.1,2711.8,2.28893467]
[1645925621111,0.00320179,2712.4,2711.8,2.28893467]
[1645925621308,1.66195606,2712.5,2711.8,2.28893467]
[1645925621509,0.00530898,2712.1,2711.9,0.9218986]
[1645925621710,0.00530898,2712.1,2712.0,0.9219]
[1645925622309,1.6831888,2712.5,2712.0,0.9219]
[1645925622310,1.66195606,2712.5,2712.0,0.9219]
[1645925622712,0.00530893,2712.2,2712.0,0.9219]
[1645925623309,0.00530893,2712.2,2711.9,0.3]
[1645925623509,1.66195606,2712.5,2711.9,0.3]
[1645925623711,1.66195606,2712.5,2711.9,0.04260325]
[1645925624009,0.00530891,2712.2,2711.9,0.04260325]
[1645925624872,1.66195606,2712.5,2711.9,0.04260325]
[1645925625071,0.00530893,2712.2,2711.9,0.04260325]
[1645925625970,1.66195606,2712.5,2711.9,0.04260325]
[1645925626273,0.00530893,2712.2,2711.9,0.04260325]
[1645925627173,1.66195606,2712.5,2711.9,0.04260325]
[1645925627371,0.00530893,2712.2,2711.9,0.04260325]
[1645925628409,1.66195606,2712.5,2711.7,2.14383]
[1645925628609,0.00530893,2712.2,2711.7,2.14383]
[1645925629621,0.00320179,2712.4,2711.7,2.14383]
[1645925629814,0.00530898,2712.1,2711.7,2.14383]
[1645925630815,0.00320179,2712.4,2711.7,2.14383]
[1645925631015,0.00530901,2712.0,2711.7,2.14383]
[1645925632061,0.00320179,2712.4,2711.7,2.14383]
[1645925632355,0.00530903,2712.0,2711.6,0.3]
[1645925632655,0.00530903,2712.0,2711.4,0.3]
[1645925632855,0.00530903,2712.0,2711.3,1.22201]
[1645925633056,0.00530903,2712.0,2711.3,0.92201]
[1645925633356,0.00530903,2712.0,2711.9,0.04260325]
[1645925633555,0.02443338,2712.4,2711.9,0.04260325]
[1645925633754,1.33012605,2712.0,2711.9,0.04260325]
[1645925633956,1.32918849,2712.0,2711.9,0.04260325]
[1645925634153,0.02123159,2712.4,2711.9,0.04260325]
[1645925634154,0.02443338,2712.4,2711.9,0.04260325]
[1645925634359,2.02485606,2712.5,2711.9,0.04260325]
[1645925634666,0.00382225,2712.1,2711.9,0.04260325]
[1645925635516,1.68044454,2712.5,2711.9,0.04260325]
[1645925635517,1.66515785,2712.5,2711.9,0.04260325]
[1645925635720,1.66195606,2712.5,2711.9,0.04260325]
[1645925635923,0.0051302,2712.1,2711.9,0.04260325]
[1645925636916,1.66515785,2712.5,2711.9,0.04260325]
[1645925637123,0.0051302,2712.1,2712.0,1.01753171]
[1645925637319,0.0051302,2712.1,2711.9,0.96454325]
[1645925637518,0.0051302,2712.1,2711.9,0.04260325]
[1645925638119,1.66195606,2712.5,2711.9,0.04260325]
[1645925638420,0.00530636,2712.1,2711.5,0.6]
[1645925638622,0.00530636,2712.1,2711.5,1.6]
[1645925638817,0.00530636,2712.1,2711.4,0.6]
[1645925639018,0.00530636,2712.1,2711.4,0.3]
[1645925639266,0.00530636,2712.1,2711.3,2.66501]
[1645925639465,0.00530636,2712.1,2711.6,1.14647543]
[1645925639871,0.00530636,2712.1,2711.6,1.44647543]
[1645925642369,0.00530636,2712.1,2711.6,0.3]
[1645925642565,0.00530636,2712.1,2711.5,1.3]
[1645925642566,0.00530636,2712.1,2711.5,1.0]
[1645925642768,2.02485606,2712.5,2711.5,0.3]
[1645925643017,1.55837909,2712.4,2711.5,0.3]
[1645925643210,1.55837909,2712.4,2711.3,1.66501]
[1645925643815,1.55837909,2712.4,2711.8,0.04269002]
[1645925647056,5.05837909,2712.4,2711.8,0.04269002]
[1645925647259,1.55837909,2712.4,2711.8,0.04269002]
[1645925647459,1.55837909,2712.3,2711.8,0.04269002]
[1645925647658,1.55837909,2712.2,2711.8,0.04269002]
[1645925647864,3.25169516,2712.5,2711.8,0.04269002]
[1645925648065,1.55831763,2712.4,2711.6,0.29269002]
[1645925648267,1.55831763,2712.4,2711.3,1.66501]
[1645925648465,5.42121763,2712.4,2711.3,2.66501]
[1645925648666,1.92121763,2712.3,2711.3,2.66501]
[1645925648869,1.92121763,2712.3,2711.9,0.02226502]
[1645925648870,1.55831763,2712.2,2711.9,0.02226502]
[1645925649668,0.3629,2712.3,2711.9,0.02226502]
[1645925651118,1.5584014,2712.2,2711.9,0.02226502]
[1645925651918,0.3629,2712.3,2711.9,0.02226502]
[1645925652118,1.55839341,2712.2,2711.9,0.02226502]
[1645925653725,1.68892757,2712.2,2711.7,0.443]
[1645925653926,0.13053416,2712.2,2711.7,0.443]
[1645925655671,0.00530638,2712.1,2711.7,0.443]
[1645925656071,0.00530638,2712.1,2711.4,1.18442662]
[1645925656271,0.00530638,2712.1,2711.5,0.531]
[1645925656570,0.13053416,2712.2,2711.5,0.831]
[1645925656773,0.00530645,2711.9,2711.5,0.831]
[1645925657775,0.13053416,2712.2,2711.5,0.831]
[1645925658213,0.0053065,2711.8,2711.5,0.831]
[1645925659016,0.06526708,2712.2,2711.5,0.831]
[1645925659222,0.00530652,2711.8,2711.5,0.831]
[1645925660222,0.06526708,2712.2,2711.5,0.831]
[1645925660423,0.00530652,2711.8,2711.5,0.831]
[1645925661426,0.06526708,2712.2,2711.5,0.831]
[1645925661686,0.00530652,2711.8,2711.5,0.831]
[1645925662670,0.06526708,2712.2,2711.5,0.831]
[1645925662869,0.0039984,2711.8,2711.5,0.831]
[1645925663771,0.1294392,2711.8,2711.5,0.831]
[1645925663970,0.1334376,2711.8,2711.5,0.831]
[1645925664973,0.4496,2711.7,2711.5,0.831]
[1645925665175,0.1294392,2711.8,2711.5,0.831]
[1645925665418,0.1334376,2711.8,2711.5,0.831]
[1645925666219,0.1294392,2711.8,2711.5,0.831]
[1645925666722,0.13474312,2711.8,2711.5,0.831]
[1645925667521,0.1294392,2711.8,2711.5,0.831]
[1645925667723,0.13474312,2711.8,2711.5,0.831]
[1645925668123,0.13345924,2711.8,2711.5,0.831]
[1645925668321,0.13345924,2711.8,2711.5,0.9785]
[1645925668721,0.12815532,2711.8,2711.5,0.9785]
[1645925668921,0.13345924,2711.8,2711.5,0.9785]
[1645925669874,0.12815532,2711.8,2711.5,0.9785]
[1645925670071,0.08345924,2711.8,2711.5,0.9785]
[1645925670970,0.07815532,2711.8,2711.5,0.9785]
[1645925671473,0.08345924,2711.8,2711.5,0.9785]
[1645925672276,0.07815532,2711.8,2711.5,0.9785]
[1645925672476,0.08345924,2711.8,2711.5,0.9785]
[1645925673507,0.07815532,2711.8,2711.5,0.9785]
[1645925673705,0.08345924,2711.8,2711.5,0.9785]
[1645925674314,0.00530392,2711.8,2711.7,0.01444067]
[1645925674714,1.66195606,2712.5,2711.7,0.01444067]
[1645925674914,0.00530392,2711.8,2711.7,0.54544067]
[1645925675314,0.00530392,2711.8,2711.7,1.10661208]
[1645925675521,0.00530392,2711.8,2711.7,12.19661208]
[1645925675914,1.66195606,2712.5,2712.4,1.1210461]
[1645925676117,1.66195606,2712.5,2712.4,1.6520461]
[1645925676318,1.66195606,2712.5,2712.4,1.9520461]
[1645925676769,1.46195606,2712.5,2712.4,1.9520461]
[1645925680818,0.004001,2712.6,2712.4,2.3149461]
[1645925681018,0.004001,2712.6,2712.4,3.2367161]
[1645925681423,0.004001,2712.6,2712.4,0.531]
[1645925681619,0.004001,2712.6,2712.2,0.1474]
[1645925681818,0.4496,2712.8,2712.2,0.1474]
[1645925682217,0.00530611,2712.6,2712.2,0.1474]
[1645925682722,0.00530611,2712.6,2712.2,1.56773597]
[1645925683122,0.4496,2712.8,2712.2,1.56773597]
[1645925683320,0.4496,2712.8,2712.2,0.1474]
[1645925683518,0.004001,2712.5,2712.1,1.6]
[1645925683718,0.004001,2712.5,2712.4,0.04952513]
[1645925684374,0.4496,2712.8,2712.4,0.04952513]
[1645925684575,0.004001,2712.6,2712.4,0.04952513]
[1645925685381,0.09688176,2712.3,2711.5,0.25]
[1645925685576,0.45978176,2712.3,2711.2,0.7505]
[1645925685881,0.4496,2711.6,2711.2,0.7505]
[1645925686074,3.5,2712.2,2711.2,0.7505]
[1645925686477,3.8629,2712.2,2711.2,0.7505]
[1645925687076,0.0053091,2711.8,2711.2,0.70487006]
[1645925687275,0.0053091,2711.8,2711.2,1.00487006]
[1645925687912,3.8629,2712.2,2711.2,1.0005]
[1645925688112,3.8629,2712.2,2711.2,1.3634]
[1645925688113,3.5,2712.2,2711.2,1.3634]
[1645925688314,0.09688176,2712.3,2711.2,1.00487006]
[1645925688315,0.005309,2711.7,2711.2,1.00487006]
[1645925688713,0.005309,2711.7,2711.2,0.70487006]
[1645925689117,0.3629,2712.0,2711.2,0.7005]
[1645925689118,4.1644,2711.9,2711.2,0.7005]
[1645925689518,16.45820893,2711.7,2710.7,0.25]
[1645925689722,0.3629,2711.5,2710.7,0.25]
[1645925689918,0.3629,2711.5,2710.0,1.8679734]
[1645925689919,0.3629,2711.2,2710.0,0.25]
[1645925690121,0.3629,2711.2,2709.9,1.2205]
[1645925690122,3.5,2711.1,2709.9,1.2205]
[1645925690323,3.5,2711.1,2709.9,4.7205]
[1645925690521,3.5,2711.1,2709.9,5.03044876]
[1645925690720,3.5,2711.3,2710.0,0.531]
[1645925690921,3.5,2711.5,2710.0,0.8939]
[1645925691769,1.4033308,2710.9,2710.0,1.1939]
[1645925691970,1.4033308,2710.9,2710.6,0.00387923]
[1645925692764,1.4033308,2710.9,2710.0,0.831]
[1645925692971,1.29574203,2710.4,2710.0,0.831]
[1645925693572,1.29574203,2710.4,2710.0,0.531]
[1645925693772,1.29574203,2710.4,2709.6,0.58791471]
[1645925694165,1.29574203,2710.4,2710.1,0.00388002]
[1645925694572,1.65864203,2710.4,2710.1,0.00388002]
[1645925694770,1.65864203,2710.4,2710.1,8.002e-05]
[1645925694771,12.74864203,2710.4,2710.1,8.002e-05]
[1645925694973,11.4529,2710.4,2710.1,8.002e-05]
[1645925695172,12.4529,2710.4,2709.3,0.25]
[1645925695420,1.3629,2710.4,2709.1,1.1455]
[1645925695626,0.3629,2710.3,2709.1,1.1455]
[1645925695824,0.3629,2710.3,2708.9,6.3429]
[1645925696024,0.3629,2710.3,2708.9,7.6429]
[1645925696222,1.27599169,2709.5,2708.9,7.6429]
[1645925696427,1.27599169,2709.5,2708.9,1.3]
[1645925696824,1.27599169,2709.5,2708.9,1.22297]
[1645925697023,1.27599169,2709.5,2708.9,0.3]
[1645925697223,1.27599169,2709.5,2708.8,0.831]
[1645925697424,1.27599169,2709.5,2708.8,2.1734086]
[1645925698026,1.5925,2710.3,2708.8,2.1734086]
[1645925698228,1.5925,2710.3,2708.8,0.831]
[1645925699031,1.5925,2710.3,2709.4,0.00435247]
[1645925699280,1.17203788,2710.2,2709.4,0.00435247]
[1645925699481,0.3629,2710.1,2709.4,0.00435247]
[1645925700083,11.4529,2709.9,2708.6,0.1476]
[1645925700282,12.7529,2709.9,2709.6,0.00435215]
[1645925700481,1.6629,2709.9,2709.6,0.00435215]
[1645925700683,1.82749732,2709.9,2709.6,0.00435215]
[1645925700880,0.3629,2709.7,2709.6,0.00435215]
[1645925701101,0.3629,2709.7,2708.6,0.1476]
[1645925701286,1.0639492,2709.1,2708.6,0.1476]
[1645925701479,0.3629,2709.7,2709.6,0.00435215]
[1645925702283,1.0,2709.9,2709.6,0.00435215]
[1645925702480,1.68023347,2709.8,2708.8,0.1476]
[1645925702679,1.3413965,2709.2,2708.7,0.1476]
[1645925702920,0.3629,2709.8,2708.6,0.3]
[1645925703121,0.3629,2709.8,2708.7,0.1476]
[1645925703725,9.67875985,2710.2,2708.7,0.1476]
[1645925703726,0.3629,2710.1,2708.7,0.1476]
[1645925703923,7.9954,2710.2,2709.1,1.11112543]
[1645925704125,3.2296,2710.3,2709.2,4.1786]
[1645925704333,2.0,2710.3,2709.2,0.9786]
[1645925704527,2.0,2710.3,2709.2,0.6786]
[1645925704729,2.0,2710.3,2709.2,0.9786]
[1645925704928,2.3629,2710.3,2709.2,0.9786]
[1645925705127,2.3629,2710.3,2709.6,0.0034836]
[1645925705728,1.38215597,2709.9,2709.6,0.0034836]
[1645925705930,1.38215597,2709.9,2709.2,0.531]
[1645925706430,1.38215597,2709.9,2709.8,0.00348334]
[1645925707077,2.3629,2710.3,2709.8,0.00348334]
[1645925707277,2.0,2710.3,2709.2,0.531]
[1645925707482,0.3629,2710.2,2709.7,0.00348347]
[1645925707779,0.6629,2710.2,2709.7,0.00348347]
[1645925707993,0.6629,2710.2,2709.7,8.347e-05]
[1645925707994,5.0,2709.8,2709.7,8.347e-05]
[1645925708177,1.28632,2709.4,2708.3,0.11687862]
[1645925708378,1.28632,2709.4,2708.1,6.4893]
[1645925708379,3.8629,2709.3,2708.1,6.4893]
[1645925708586,3.8629,2709.3,2708.2,0.1476]
[1645925709387,1.02264662,2708.5,2708.2,0.1476]
[1645925709786,1.02264662,2708.5,2707.6,0.25]
[1645925709787,1.38554662,2708.5,2707.8,0.1476]
[1645925709984,1.38554662,2708.5,2707.7,0.1477]
[1645925710184,1.38554662,2708.5,2707.5,0.1477]
[1645925710419,0.3629,2708.3,2707.5,0.1477]
[1645925710621,1.43006097,2707.7,2707.5,0.1477]
[1645925710824,1.43006097,2707.7,2707.0,6.7094]
[1645925711028,12.88296097,2707.7,2706.7,8.36]
[1645925711228,12.88296097,2707.7,2706.5,0.64787862]
[1645925711229,11.4529,2707.5,2706.3,3.5]
[1645925711429,0.3629,2707.3,2706.3,3.5]
[1645925711628,0.4496,2707.4,2706.3,1.17071836]
[1645925711937,2.20755816,2707.8,2706.4,0.3629]
[1645925711938,0.1477,2707.8,2706.4,0.3629]
[1645925712126,7.6941,2707.7,2706.5,1.0416]
[1645925712327,2.0,2708.0,2706.7,0.36420605]
[1645925712529,2.0,2708.0,2706.8,5.46525]
[1645925712733,7.6941,2708.1,2706.8,5.46525]
[1645925712734,7.6941,2708.1,2707.3,1.38015834]
[1645925712930,2.0,2708.5,2707.4,0.1477]
[1645925713229,2.0,2708.5,2707.4,0.6787]
[1645925713831,2.0,2708.5,2707.4,1.0416]
[1645925714028,0.4496,2708.6,2707.4,1.0416]
[1645925714505,0.4496,2708.6,2707.4,4.5416]
[1645925714692,0.4496,2708.6,2707.4,5.5416]
[1645925714896,0.4496,2708.6,2708.1,1.34875177]
[1645925715095,0.4496,2708.6,2707.8,0.3629]
[1645925715296,0.08128526,2708.9,2707.9,1.0415]
[1645925716097,0.08128526,2708.9,2708.0,1.5805727]
[1645925716297,2.82335,2709.4,2708.2,0.3629]
[1645925716298,1.9,2709.4,2708.2,0.3629]
[1645925716498,9.18294423,2709.6,2708.4,1.2859531]
[1645925716701,0.01034423,2709.6,2708.6,0.3629]
[1645925716904,0.01034423,2709.6,2708.7,0.6786]
[1645925717100,0.01034423,2709.6,2708.8,0.531]
[1645925717300,0.01034423,2709.6,2708.9,0.00434139]
[1645925717499,0.01034423,2709.6,2708.9,0.68294139]
[1645925718118,0.01034423,2709.6,2709.0,0.3629]
[1645925718317,0.01034423,2709.6,2709.1,0.6786]
[1645925718518,0.01034423,2709.6,2709.1,0.68294099]
[1645925719423,0.01034423,2709.6,2709.1,0.6786]
[1645925719626,0.01034423,2709.6,2709.2,0.00434083]
[1645925719824,0.01034423,2709.6,2709.3,0.1476]
[1645925720225,0.01034423,2709.6,2709.2,0.00434083]
[1645925720426,0.01034423,2709.6,2708.4,0.781]
[1645925720625,0.01034423,2709.6,2708.4,0.531]
[1645925720827,0.01034423,2709.6,2709.3,0.00434067]
[1645925721130,0.01034423,2709.6,2709.3,4.067e-05]
[1645925721131,16.4529,2709.4,2709.3,4.067e-05]
[1645925721329,18.69096934,2709.4,2709.3,4.067e-05]
[1645925721526,20.38713657,2709.4,2709.3,4.067e-05]
[1645925721764,0.3629,2709.3,2707.2,6.6105]
[1645925721970,0.3629,2709.1,2707.2,6.6105]
[1645925722175,0.3629,2708.9,2707.2,6.6105]
[1645925722366,11.4529,2708.7,2707.2,0.1477]
[1645925722568,0.3629,2708.5,2707.2,0.1477]
[1645925722763,0.6629,2708.5,2707.2,0.1477]
[1645925722968,0.3629,2708.3,2707.2,0.1477]
[1645925723164,3.5,2708.2,2707.2,0.1477]
[1645925723364,0.3629,2708.3,2707.2,0.1477]
[1645925723564,0.3629,2708.3,2707.1,0.1477]
[1645925723565,1.35219698,2708.1,2707.1,0.1477]
[1645925723967,1.0,2708.3,2707.1,0.1477]
[1645925724168,4.0049014,2708.7,2707.2,0.3629]
[1645925724169,3.0812,2708.7,2707.2,0.3629]
[1645925724378,3.0812,2708.7,2707.2,0.8939]
[1645925724682,1.9,2708.7,2707.2,1.1939]
[1645925725072,1.20077908,2708.3,2707.5,1.32509335]
[1645925725272,1.20077908,2708.3,2707.2,1.831]
[1645925725535,1.20077908,2708.3,2707.8,0.00433232]
[1645925725536,3.8629,2708.2,2707.8,0.00433232]
[1645925725834,0.3629,2708.2,2707.8,0.00433232]
[1645925726434,0.3629,2708.2,2707.1,0.1477]
[1645925726644,3.5,2708.1,2707.1,0.1477]
[1645925726836,3.5,2708.1,2707.9,0.00433224]
[1645925727035,0.3629,2708.2,2707.9,0.00433224]
[1645925727241,2.20077908,2708.3,2707.9,0.00433224]
[1645925727438,5.70077908,2708.3,2707.9,0.00433224]
[1645925727639,2.20077908,2708.3,2707.9,0.00433224]
[1645925727938,4.8,2708.3,2707.1,0.1477]
[1645925728339,0.3629,2708.2,2707.1,0.1477]
[1645925728539,0.3629,2708.0,2707.1,0.1477]
[1645925728738,3.5,2707.9,2707.1,0.1477]
[1645925729183,3.5,2707.9,2707.4,0.00433296]
[1645925729380,1.57995743,2707.8,2707.4,0.00433296]
[1645925729882,0.4496,2707.6,2707.4,0.00433296]
[1645925730079,3.5,2707.5,2707.1,0.1477]
[1645925730380,0.4496,2707.6,2707.5,0.00406207]
[1645925731178,4.5,2708.1,2707.5,0.00406207]
[1645925731478,1.0,2708.1,2706.7,0.9129]
[1645925731684,3.5,2708.0,2707.4,0.00406214]
[1645925731884,1.2131,2708.2,2707.4,0.00406214]
[1645925731885,3.5,2708.1,2707.4,0.00406214]
[1645925732280,1.2131,2708.2,2707.4,0.00406214]
[1645925732487,1.2131,2708.2,2706.8,0.531]
[1645925732488,3.5,2708.1,2706.8,0.531]
[1645925732680,1.2131,2708.2,2706.8,4.031]
[1645925732920,1.2131,2708.2,2707.6,0.00406184]
[1645925733219,2.2629,2708.3,2707.6,0.00406184]
[1645925733918,2.5629,2708.3,2707.8,0.00349542]
[1645925734122,2.5629,2708.3,2706.8,1.3]
[1645925734123,0.00699084,2707.6,2706.8,1.3]
[1645925734325,0.00699084,2707.6,2706.7,0.3]
[1645925734525,0.00699084,2707.6,2706.6,1.0]
[1645925735127,1.22573954,2707.4,2706.6,2.01161226]
[1645925735826,1.22573954,2707.4,2706.6,1.0]
[1645925736689,1.22573954,2707.4,2706.5,0.65691471]
[1645925736690,1.22573954,2707.4,2706.5,1.79569378]
[1645925736881,0.00699084,2707.6,2706.7,0.3629]